[Event "7th Sharjah Masters 2024"]
[Site "Sharjah"]
[Date "2024.05.14"]
[Round "1.26"]
[White "Nikitenko, Mihail"]
[Black "Sargsyan, Shant"]
[Result "1/2-1/2"]
[ECO "B96"]
[WhiteElo "2529"]
[BlackElo "2637"]
[Annotator "TA"]
[PlyCount "107"]
[EventDate "2024.05.13"]
[EventType "swiss"]
[EventCountry "UAE"]
[SourceTitle "playchess.com"]
[Source "ChessBase"]
[SourceQuality "1"]
[TimeControl "5400+30"]

{[%evp 16,107,11,0,15,25,13,14,40,26,8,11,0,10,0,3,7,12,6,0,0,0,12,13,11,9,14,0,0,0,36,33,31,32,33,41,87,37,34,38,34,41,40,37,32,27,47,34,48,43,54,19,20,24,49,46,50,43,60,61,60,62,70,62,61,62,61,60,60,0,0,0,8,8,8,0,0,0,0,0,0,0,0,0,0,0,0,0,0,0,0,0,0,0]} 1. e4 {[%emt 0:00:04]} c5 {[%emt 0:01:15]} 2. Nf3 {[%emt 0:00:08]} d6 {[%emt 0:00:13]} 3. d4 {[%emt 0:00:11]} cxd4 {[%emt 0:00:06]} 4. Nxd4 {[%emt 0:00:06]} Nf6 {[%emt 0:00:10]} 5. Nc3 {[%emt 0:00:06]} a6 {[%emt 0:00:07]} 6. Bg5 {[%emt 0:02:04]} e6 {[%emt 0:00:28]} 7. f4 {[%emt 0:00:22]} h6 {[%emt 0:01:00]} 8. Bh4 {[%emt 0:00:07]} Qb6 {[%emt 0:00:05]} 9. a3 {[%emt 0:00:05]} Nc6 {[%emt 0:00:13]} (9... Qxb2 $2 10. Na4 $18) 10. Bf2 {[%emt 0:00:15][%cal Od4e6] [#] Strongly threatening Nxe6!} Qc7 {[%emt 0:00:05]} (10... Qxb2 $2 11. Na4 $18) 11. Qf3 {[%emt 0:01:53]} e5 {[%emt 0:00:24]} 12. Nxc6 {[%emt 0:07:24]} bxc6 {[%emt 0:00:50]} 13. Bc4 {[%emt 0:00:52]} exf4 {[%emt 0:00:53]} 14. Qxf4 {[%emt 0:02:48]} Be7 {[%emt 0:00:07]} 15. O-O {[%emt 0:02:25]} O-O {[%emt 0:00:06]} 16. Bd4 {[%emt 0:01:26]} Be6 {[%emt 0:00:08]} 17. Bxe6 {[%emt 0:03:36]} fxe6 {[%emt 0:00:06]} 18. e5 {[%emt 0:02:23]} dxe5 {[%emt 0:09:52]} 19. Bxe5 {[%emt 0:00:19]} Qb6+ {[%emt 0:03:17]} 20. Kh1 {[%emt 0:00:36]} Nd7 {[%emt 0:02:18][%cal Bf6d7,Bd7e5,Be5g6][%mdl 32]} 21. Qg4 {[%emt 0:05:35][%csl Ge5][%cal Rg4g7] [#]} (21. Qd4 {simplifies} Qxd4 22. Bxd4 Rxf1+ 23. Rxf1 Nf6 24. g3) 21... Nxe5 {[%emt 0:11:26]} 22. Qxe6+ {[%emt 0:00:13]} Kh8 {[%emt 0:01:46]} 23. Qxe7 {[%emt 0:00:39]} Ng6 {[%emt 0:02:58]} 24. Qb4 {[%emt 0:04:41]} Qxb4 {[%emt 0:01:01]} 25. axb4 {[%emt 0:00:04]} Rxf1+ $1 {[%emt 0:00:10]} 26. Rxf1 $14 {[%emt 0:00:04][%mdl 4096] Endgame. KRN-KRN} Rb8 {[%emt 0:00:05]} 27. b3 {[%emt 0:01:37]} Rxb4 {[%emt 0:00:23]} 28. Rd1 {[%emt 0:00:03]} Kg8 {[%emt 0:12:53]} 29. Kg1 {[%emt 0:03:04]} Ne7 {[%emt 0:10:24]} 30. Kf2 {[%emt 0:00:32]} Rh4 {[%emt 0:02:00]} 31. h3 {[%emt 0:02:08]} Rh5 {[%emt 0:00:29]} 32. Ne4 {[%emt 0:02:36]} Nd5 {[%emt 0:01:40]} 33. c4 {[%emt 0:05:08]} Rf5+ {[%emt 0:01:56]} 34. Kg3 {[%emt 0:00:14]} Nb4 {[%emt 0:07:47]} 35. h4 {[%emt 0:01:27]} a5 {[%emt 0:05:11]} 36. Kg4 {[%emt 0:01:13]} Rf8 {[%emt 0:01:01]} 37. Rd2 {[%emt 0:02:23]} Kh7 {[%emt 0:02:33]} 38. h5 {[%emt 0:00:41]} Rf7 {[%emt 0:02:09]} 39. Nc5 {[%emt 0:03:25]} g6 {[%emt 0:03:39]} 40. hxg6+ {[%emt 0:00:50]} Kxg6 {[%emt 0:00:01]} 41. Rd6+ {[%emt 0:00:13]} Kg7 {[%emt 0:02:22]} ({Of course not} 41... Rf6 42. Rxf6+ Kxf6 43. Nb7) 42. Rd7 {[%emt 0:04:59]} ({White should try} 42. Ne6+ $14 Kh7 43. Nd4) 42... Rxd7 $11 {[%emt 0:09:54] The position is equal.} 43. Nxd7 {[%emt 0:00:14] KN-KN} Kf7 {[%emt 0:00:30]} 44. Nc5 {[%emt 0:00:30] Threatens to win with Kh5.} Ke7 $1 {[%emt 0:00:36]} 45. Kf5 {[%emt 0:07:44]} Nc2 {[%emt 0:01:41]} 46. Ke5 {[%emt 0:01:48]} h5 {[%emt 0:04:02]} 47. g3 {[%emt 0:01:23]} Na1 {[%emt 0:01:04]} 48. Kd4 {[%emt 0:00:24]} Nc2+ {[%emt 0:00:17]} 49. Kd3 {[%emt 0:01:46]} Nb4+ {[%emt 0:00:10]} 50. Kc3 {[%emt 0:00:05]} Kd6 {[%emt 0:00:58]} 51. Nb7+ {[%emt 0:00:55]} Kc7 {[%emt 0:00:11]} 52. Nc5 {[%emt 0:00:05]} (52. Nxa5 $2 {too greedy.} c5 53. Kd2 Kb6 $19) 52... Kd6 {[%emt 0:00:06] Prevents Ne6} 53. Nb7+ {[%emt 0:00:04]} Kc7 {[%emt 0:00:09]} 54. Nc5 $1 {[%emt 0:00:04] Weighted Error Value: White=0.04 (flawless) /Black=0.04 (flawless) .  Mistake:       	White=1     	---        Inaccurate:     	White=2     	Black=1      OK:         	White=18    	Black=20     Best:        	White=1     	Black=6      Strong:       	White=1     	Black=2} (54. Nxa5 $2 {perishes.} c5 55. Kd2 Kb6 $19) 1/2-1/2

[Event "7th Sharjah Masters 2024"]
[Site "Sharjah"]
[Date "2024.05.14"]
[Round "1.27"]
[White "Mishra, Abhimanyu"]
[Black "Raja Rithvik R"]
[Result "1-0"]
[ECO "B45"]
[WhiteElo "2634"]
[BlackElo "2524"]
[Annotator "TA"]
[PlyCount "56"]
[EventDate "2024.05.13"]
[EventType "swiss"]
[EventCountry "UAE"]
[SourceTitle "playchess.com"]
[Source "ChessBase"]
[SourceQuality "1"]
[TimeControl "5400+30"]

{[%evp 17,56,75,54,62,47,57,63,-21,-26,-16,-24,-22,0,0,0,0,0,0,4,4,48,40,46,0,0,0,0,0,0,0,83,63,54,55,54,58,300,287,306,311,278]} 1. e4 {[%emt 0:00:01]} c5 {[%emt 0:00:09]} 2. Nf3 {[%emt 0:00:08][%cal Bg1f3,Bf3d4,Bd4b5,Bb5c7][%mdl 32]} e6 {[%emt 0:00:10]} 3. d4 cxd4 4. Nxd4 {[%emt 0:00:41]} Nf6 {[%emt 0:00:10]} 5. Nc3 {[%emt 0:00:43]} Nc6 {[%emt 0:00:07]} 6. Bf4 {[%emt 0:01:09]} Bb4 {[%emt 0:00:18]} 7. Ndb5 {[%emt 0:01:11]} Nxe4 {[%emt 0:00:12]} 8. Qf3 {[%emt 0:02:18]} d5 {[%emt 0:00:08]} 9. Nc7+ {[%emt 0:00:21]} Kf8 {[%emt 0:00:07][%cal Oe6e5] And now ...e5! would win.} 10. Nxa8 {[%emt 0:00:48] Strongly threatening 0-0-0.} e5 {[%emt 0:00:10]} 11. Bd2 {[%emt 0:00:13]} Nd4 {[%emt 0:00:12][%csl LRc2,LRf3]} 12. Qd3 {[%emt 0:00:34]} (12. Qd1 $1 $14 Bg4 (12... Nxd2 13. Qxd2 Bg4 14. a3 $16) 13. Qxg4 Nxc2+ 14. Ke2 Nd4+ (14... Nxa1 $2 15. Nxd5 Qxd5 16. Bxb4+ $18) 15. Ke1 Nc2+ 16. Ke2 Nd4+ (16... Nxa1 $2 17. Nxd5 Qxd5 18. Bxb4+ $18) 17. Ke1 Nc2+ 18. Ke2) 12... Nc5 $11 {[%emt 0:04:40]} (12... Nxd2 $6 13. Qxd2 Bg4 14. h3 $18) 13. Qg3 {[%emt 0:00:46]} Nxc2+ {[%emt 0:03:05]} 14. Kd1 {[%emt 0:00:07]} Nxa1 {[%emt 0:05:32]} 15. Qxe5 {[%emt 0:00:10]} Ne4 $1 {[%emt 0:11:23]} 16. Be1 {[%emt 0:00:47]} Bd6 {[%emt 0:10:32]} 17. Qxd5 {[%emt 0:03:07]} Nxc3+ {[%emt 0:00:47]} 18. Bxc3 {[%emt 0:04:55] Bb4 would now be deadly.} Be6 {[%emt 0:00:45]} 19. Qd4 $40 {[%emt 0:10:15][%mdl 128] Black needs to defend precisely.} Ke7 {[%emt 0:28:22] [#] White must now prevent ...Be5.} 20. Kc1 $1 {[%emt 0:24:38]} Bxa2 {[%emt 0:05:57] aiming for ...Nb3+.} 21. Bc4 {[%emt 0:03:52] Threatening mate with Re1+. The board is on fire.} Nb3+ {[%emt 0:00:16]} 22. Bxb3 {[%emt 0:00:11]} Bxb3 {[%emt 0:00:03]} 23. Re1+ {[%emt 0:03:08]} Kd7 {[%emt 0:05:39]} (23... Be6 $1 $11 24. Qh4+ (24. Qxg7 $2 {perishes.} Rg8 $19) 24... Ke8 (24... f6 $2 25. Qg4 $18)) 24. Qg4+ $16 {[%emt 0:07:34]} Be6 $1 {[%emt 0:02:07] [#]} 25. Rxe6 {[%emt 0:01:05]} fxe6 {[%emt 0:00:06]} 26. Qxg7+ {[%emt 0:00:28]} Kc6 $2 {[%emt 0:08:58]} (26... Kc8 $1 $14 27. Qxh8 Qxh8 28. Bxh8 Kb8) 27. Qxh8 $18 {[%emt 0:00:34]} Qxh8 {[%emt 0:00:08]} 28. Bxh8 {[%emt 0:00:06]} b5 {[%emt 0:00:15] Weighted Error Value: White=0.14 (very precise) /Black=0.26 (precise) .  Loses game:     	---       	Black=1      Mistake:       	White=2     	Black=1      OK:         	White=8     	Black=6      Best:        	White=5     	Black=4      Strong:       	---       	Black=2      Brilliant:      	White=1     	---} 1-0

[Event "7th Sharjah Masters 2024"]
[Site "Sharjah"]
[Date "2024.05.14"]
[Round "1.28"]
[White "Yilmazyerli, Mert"]
[Black "Murzin, Volodar"]
[Result "0-1"]
[ECO "E62"]
[WhiteElo "2522"]
[BlackElo "2634"]
[Annotator "RC"]
[PlyCount "126"]
[EventDate "2024.05.13"]
[EventType "swiss"]
[EventCountry "UAE"]
[SourceTitle "playchess.com"]
[Source "ChessBase"]
[SourceQuality "1"]
[TimeControl "5400+30"]

1. d4 {[%emt 0:00:15]} Nf6 {[%emt 0:00:11]} 2. c4 {[%emt 0:00:13]} g6 {[%emt 0:00:06]} 3. Nf3 {[%emt 0:00:18]} Bg7 {[%emt 0:00:07]} 4. g3 {[%emt 0:00:06]} O-O {[%emt 0:00:14]} 5. Bg2 {[%emt 0:00:05]} c6 {[%emt 0:00:39]} 6. Nc3 {[%emt 0:01:37]} d6 {[%emt 0:00:15]} 7. O-O {[%emt 0:00:22]} Bf5 {[%emt 0:00:09]} 8. Re1 {[%emt 0:01:40]} Ne4 {[%emt 0:00:41]} 9. Qb3 {[%emt 0:02:52]} Nxc3 {[%emt 0:00:23]} 10. bxc3 {[%emt 0:00:17]} Bc8 {[%emt 0:00:12]} 11. e4 {[%emt 0:01:03]} Nd7 {[%emt 0:00:10]} 12. Ba3 {[%emt 0:02:39]} c5 {[%emt 0:00:21]} 13. e5 {[%emt 0:02:52]} dxe5 {[%emt 0:00:34]} 14. dxe5 {[%emt 0:02:47]} Qc7 {[%emt 0:00:51]} 15. e6 {[%emt 0:03:13]} fxe6 {[%emt 0:00:04]} 16. Ng5 {[%emt 0:00:27]} Ne5 {[%emt 0:00:44]} 17. f4 {[%emt 0:03:39]} Rf5 {[%emt 0:01:09]} 18. Rad1 {[%emt 0:07:43]} h6 {[%emt 0:11:03]} 19. fxe5 {[%emt 0:11:24]} hxg5 {[%emt 0:07:31]} 20. Qb5 {[%emt 0:05:28]} Kf7 {[%emt 0:08:19]} 21. Be4 {[%emt 0:09:33]} Bxe5 {[%emt 0:29:52]} 22. Bxf5 {[%emt 0:03:10]} gxf5 {[%emt 0:00:11]} 23. Qxc5 {[%emt 0:12:12]} Qxc5+ {[%emt 0:18:14]} 24. Bxc5 {[%emt 0:00:05]} Bc7 {[%emt 0:00:56]} 25. Bd4 {[%emt 0:04:01]} Bd7 {[%emt 0:02:38]} 26. Be3 {[%emt 0:04:09]} Bc6 {[%emt 0:04:50]} 27. Bxg5 {[%emt 0:00:06]} Rg8 {[%emt 0:00:03]} 28. Be3 {[%emt 0:02:55]} f4 {[%emt 0:02:16]} 29. Rf1 {[%emt 0:01:30]} e5 {[%emt 0:00:04]} 30. Bxa7 {[%emt 0:01:09]} Ke6 {[%emt 0:01:39]} 31. Rfe1 {[%emt 0:09:24]} fxg3 {[%emt 0:06:03]} 32. hxg3 {[%emt 0:00:20]} Rxg3+ {[%emt 0:00:02]} 33. Kf2 {[%emt 0:00:39]} Rxc3 {[%emt 0:01:23]} 34. Rc1 {[%emt 0:01:49]} Rf3+ {[%emt 0:00:15]} 35. Ke2 {[%emt 0:00:17]} Ra3 {[%emt 0:00:05]} 36. Bc5 {[%emt 0:00:07]} Ra5 {[%emt 0:00:34]} 37. Bb4 {[%emt 0:01:09]} Rxa2+ {[%emt 0:00:05]} 38. Kd3 {[%emt 0:01:45]} Rh2 {[%emt 0:01:54]} 39. Bc3 {[%emt 0:00:31]} Rh4 {[%emt 0:00:46]} 40. Rg1 {[%emt 0:02:44]} Bb6 {[%emt 0:02:06]} 41. Rge1 {[%emt 0:01:05]} e4+ {[%emt 0:01:50]} 42. Kc2 {[%emt 0:00:02]} e3 {[%emt 0:01:05]} 43. Kb3 {[%emt 0:01:14]} Rh3 {[%emt 0:00:47]} 44. Kb4 {[%emt 0:00:46]} Kf5 {[%emt 0:00:29]} 45. Rcd1 {[%emt 0:00:37]} Bc7 {[%emt 0:00:34]} 46. Bd4 {[%emt 0:01:34]} Bf4 {[%emt 0:00:33]} 47. Bc5 {[%emt 0:00:18]} e5 {[%emt 0:00:26]} 48. Rd8 {[%emt 0:00:19]} Ke4 {[%emt 0:00:17]} 49. Rf8 {[%emt 0:00:05]} Rh2 {[%emt 0:00:26]} 50. Kc3 {[%emt 0:00:07]} Rd2 {[%emt 0:00:24]} 51. Rf7 {[%emt 0:00:47]} Rd3+ {[%emt 0:00:22]} 52. Kb4 {[%emt 0:00:36]} Kf3 {[%emt 0:00:53]} 53. Rh7 {[%emt 0:00:04]} Bd7 {[%emt 0:00:25]} 54. Rf1+ {[%emt 0:00:24]} Ke4 {[%emt 0:00:27]} 55. Re1 {[%emt 0:00:08]} Bg4 {[%emt 0:00:43]} 56. Rg7 {[%emt 0:03:04]} Bf3 {[%emt 0:00:26]} 57. Ka4 {[%emt 0:00:43]} e2 {[%emt 0:00:34]} 58. Bb4 {[%emt 0:00:05]} Bd2 {[%emt 0:00:36]} 59. Bxd2 {[%emt 0:00:22]} Rxd2 {[%emt 0:00:02]} 60. Rxb7 {[%emt 0:00:11]} Rd1 {[%emt 0:00:08]} 61. Rb1 {[%emt 0:00:14]} Rxe1 {[%emt 0:00:27]} 62. Rxe1 {[%emt 0:00:06]} Ke3 {[%emt 0:00:05]} 63. Ra1 {[%emt 0:01:47]} Kf2 {[%emt 0:00:07]} 0-1

[Event "7th Sharjah Masters 2024"]
[Site "Sharjah"]
[Date "2024.05.14"]
[Round "1.29"]
[White "Puranik, Abhimanyu"]
[Black "Adhiban, B.."]
[Result "1/2-1/2"]
[ECO "E06"]
[WhiteElo "2631"]
[BlackElo "2523"]
[Annotator "TA"]
[PlyCount "67"]
[EventDate "2024.05.13"]
[EventType "swiss"]
[EventCountry "UAE"]
[SourceTitle "playchess.com"]
[Source "ChessBase"]
[SourceQuality "1"]
[TimeControl "5400+30"]

{[%evp 14,67,32,0,1,0,13,4,13,10,25,33,38,11,31,0,8,0,0,0,0,0,0,20,6,7,7,10,10,-35,-47,-51,-37,-43,-38,-62,-59,-56,-8,-53,-29,-29,-10,-6,-6,-11,-6,-24,0,-68,-61,-64,-60,-78,-70,-70]} 1. Nf3 {[%emt 0:00:07]} d5 {[%emt 0:00:06]} 2. g3 {[%emt 0:00:09]} Nf6 {[%emt 0:00:29]} 3. Bg2 {[%emt 0:00:17]} e6 {[%emt 0:00:05]} 4. O-O {[%emt 0:00:24]} Be7 {[%emt 0:00:06]} 5. c4 {[%emt 0:01:56]} O-O {[%emt 0:00:06]} 6. d4 {[%emt 0:00:52]} c6 {[%emt 0:00:45]} 7. Qc2 {[%emt 0:01:28]} b6 {[%emt 0:00:41]} 8. Nbd2 {[%emt 0:02:06]} c5 {[%emt 0:00:47]} 9. e4 {[%emt 0:07:28]} Bb7 {[%emt 0:08:32]} 10. exd5 {[%emt 0:20:03]} exd5 {[%emt 0:00:08] The position is equal.} 11. dxc5 {[%emt 0:00:03]} bxc5 {[%emt 0:14:38]} 12. cxd5 {[%emt 0:02:09]} Bxd5 {[%emt 0:00:56]} 13. Rd1 {[%emt 0:03:08]} Nc6 {[%emt 0:03:08]} 14. Nf1 {[%emt 0:06:27] Ne3 is the strong threat.} Qc8 {[%emt 0:04:21]} 15. Bf4 {[%emt 0:05:55]} Re8 {[%emt 0:08:58]} 16. Rd2 {[%emt 0:03:36]} h6 {[%emt 0:16:52]} 17. Ne3 {[%emt 0:06:47]} Bxf3 {[%emt 0:07:39]} 18. Bxf3 {[%emt 0:00:04] White wants to play Nf5.} g5 {[%emt 0:01:32]} 19. Bxc6 {[%emt 0:17:09]} gxf4 {[%emt 0:01:10]} 20. Bxe8 {[%emt 0:02:25]} ({Much weaker is} 20. Bxa8 fxe3 21. Bd5 exd2 $19) 20... fxe3 {[%emt 0:00:23]} 21. Re2 {[%emt 0:02:01]} (21. Bxf7+ $5 Kxf7 22. fxe3 $11) 21... Nxe8 {[%emt 0:04:26]} 22. Rxe3 {[%emt 0:00:10]} Bf6 {[%emt 0:00:12]} 23. Rae1 {[%emt 0:02:20]} Ng7 {[%emt 0:00:37]} 24. Rf3 {[%emt 0:02:32]} Qc6 {[%emt 0:01:50]} 25. Rf4 {[%emt 0:00:04]} Bg5 {[%emt 0:03:10]} (25... a5 $15) 26. Rfe4 {[%emt 0:02:20]} Rc8 {[%emt 0:06:33]} 27. b3 {[%emt 0:03:17]} Nf5 {[%emt 0:01:29]} 28. h4 {[%emt 0:00:54]} Bf6 {[%emt 0:07:48]} 29. Rg4+ {[%emt 0:00:07]} Ng7 {[%emt 0:00:03]} 30. Qc4 {[%emt 0:00:47]} Bd4 {[%emt 0:01:01]} 31. Rf4 {[%emt 0:01:29] Active counter play!} (31. Rc1 $11 Bb2 32. Rd1) 31... Ne6 $15 {[%emt 0:00:07]} 32. Rf5 {[%emt 0:00:20]} Rd8 {[%emt 0:01:30]} 33. Kh2 {[%emt 0:02:01]} Bg7 {[%emt 0:00:30]} 34. Qe4 {[%emt 0:01:50] Weighted Error Value: White=0.14 (very precise) /Black=0.06 (flawless) .  Mistake:       	White=1     	Black=1      Inaccurate:     	White=4     	---        OK:         	White=13    	Black=13     Best:        	---       	Black=2} 1/2-1/2

[Event "7th Sharjah Masters 2024"]
[Site "Sharjah"]
[Date "2024.05.14"]
[Round "1.30"]
[White "Klimkowski, Jan"]
[Black "Salem, A.R. Saleh"]
[Result "0-1"]
[ECO "C79"]
[WhiteElo "2518"]
[BlackElo "2629"]
[Annotator "TA"]
[PlyCount "132"]
[EventDate "2024.05.13"]
[EventType "swiss"]
[EventCountry "UAE"]
[SourceTitle "playchess.com"]
[Source "ChessBase"]
[SourceQuality "1"]
[TimeControl "5400+30"]

{[%evp 68,132,31,0,0,-9,0,-10,0,-40,-28,-32,-24,-58,-27,-54,-71,-68,-56,-79,0,0,0,0,5,0,0,0,0,0,0,0,0,0,0,0,0,0,0,-36,-36,-36,-43,-61,-51,-92,-97,-122,-87,-250,-250,-266,-272,-362,-411,-456,-474,-460,-457,-456,-448,-573,-574,-556,-552,-711,-675]} 1. e4 {[%emt 0:00:03]} e5 {[%emt 0:00:33]} 2. Nf3 {[%emt 0:00:06]} Nc6 {[%emt 0:00:04]} 3. Bb5 {[%emt 0:00:07]} a6 {[%emt 0:00:05]} 4. Ba4 {[%emt 0:00:06]} d6 {[%emt 0:00:06]} 5. O-O {[%emt 0:00:36]} Bd7 {[%emt 0:01:00]} 6. c3 {[%emt 0:00:20]} Nf6 {[%emt 0:00:20]} 7. Re1 {[%emt 0:01:32]} g6 {[%emt 0:00:11]} 8. d4 {[%emt 0:00:46]} Bg7 {[%emt 0:00:14]} 9. Nbd2 {[%emt 0:04:46] C79: Ruy Lopez: Steinitz-type lines with 3...a6 4 Ba4 Nf6 5 0-0 d6.} O-O {[%emt 0:00:08]} 10. Nf1 {[%emt 0:02:41]} exd4 {[%emt 0:05:05]} 11. cxd4 {[%emt 0:00:57]} b5 {[%emt 0:00:42]} 12. Bc2 {[%emt 0:04:18]} Bg4 {[%emt 0:00:08]} 13. Be3 {[%emt 0:02:16]} Nd7 {[%emt 0:01:07]} 14. Ng3 {[%emt 0:06:18]} Bxf3 $146 {[%emt 0:06:35]} ({Predecessor:} 14... Qf6 15. Ne2 Bxf3 16. gxf3 Qxf3 17. Nc3 Qh3 18. Bd3 Nf6 19. Bf1 Qh4 20. f3 Nh5 {1-0 Ruiz Buendia,M (2366)-Beisteiner,J (2079) Reykjavik op 2024 (9)}) 15. gxf3 {[%emt 0:00:12]} Qf6 {[%emt 0:00:23]} 16. d5 {[%emt 0:25:04]} Nce5 {[%emt 0:06:52]} 17. f4 {[%emt 0:03:56]} Nc4 {[%emt 0:00:05]} 18. Rb1 {[%emt 0:01:59]} Nxb2 {[%emt 0:02:59]} 19. Qg4 {[%emt 0:00:07]} Qd8 {[%emt 0:00:55]} 20. Kh1 {[%emt 0:07:26]} Nc4 {[%emt 0:01:44]} 21. Rg1 {[%emt 0:01:39]} Re8 {[%emt 0:04:32]} 22. Nf5 {[%emt 0:01:30]} Nxe3 {[%emt 0:01:47]} 23. fxe3 {[%emt 0:00:17]} Nc5 {[%emt 0:07:42]} 24. Qg2 {[%emt 0:00:40]} Rb8 {[%emt 0:04:51]} 25. Nd4 {[%emt 0:03:25]} Rb6 {[%emt 0:00:48]} 26. Rbc1 {[%emt 0:02:49]} b4 {[%emt 0:04:02]} 27. Nc6 {[%emt 0:04:05]} Qd7 {[%emt 0:06:49]} 28. f5 {[%emt 0:06:47]} Rxc6 {[%emt 0:06:46]} 29. dxc6 {[%emt 0:00:13]} Qxc6 {[%emt 0:00:04]} 30. Rgf1 {[%emt 0:04:24]} Qd7 {[%emt 0:07:13]} 31. Rf4 {[%emt 0:03:39]} Re5 {[%emt 0:10:14]} 32. Rcf1 {[%emt 0:00:46]} Qe8 {[%emt 0:02:11]} 33. fxg6 {[%emt 0:04:37]} fxg6 {[%emt 0:00:06]} 34. Qe2 {[%emt 0:00:54]} Kh8 {[%emt 0:02:31]} 35. Qc4 {[%emt 0:00:35]} Ne6 {[%emt 0:00:19]} 36. R4f2 {[%emt 0:00:37]} a5 {[%emt 0:00:36]} 37. Bb3 {[%emt 0:02:25]} Qa8 {[%emt 0:03:16]} 38. Bc2 {[%emt 0:03:52]} Nc5 {[%emt 0:03:29]} 39. Rf4 {[%emt 0:00:32]} Bh6 {[%emt 0:04:18]} 40. Rg4 {[%emt 0:00:56]} (40. Rf7 Nxe4 (40... Bxe3 $2 41. Rf8+ Kg7 42. Qg8+ Kh6 43. Rxa8 $18) 41. Bxe4 Rxe4 $17) 40... Qe8 {[%emt 0:04:49]} (40... Bxe3 41. Qf7 Qe8 42. Qxc7 Nxe4 43. Rf7 $17) 41. Qf7 {[%emt 0:00:14]} Re7 {[%emt 0:03:46]} (41... Nxe4 $2 {perishes.} 42. Qxe8+ (42. Qxc7 Qa8 $11) 42... Rxe8 43. Rxe4 Rxe4 44. Bxe4 $18) 42. Qxe8+ {[%emt 0:00:28]} Rxe8 {[%emt 0:00:01]} 43. Rf7 {[%emt 0:00:08] [#]} Bxe3 {[%emt 0:01:06]} ({Black should try} 43... Rf8 $1 $17 {[%cal Rf8f7]} 44. Rxc7 Bxe3) 44. Rh4 $11 {[%emt 0:01:05]} h6 {[%emt 0:00:29]} 45. Rh3 {[%emt 0:00:58]} Bg5 {[%emt 0:00:22]} 46. Rxc7 {[%emt 0:00:17]} Ne6 {[%emt 0:00:59]} ({Much worse is} 46... Nxe4 $6 47. Rf3 Nf6 48. Bxg6 $16) 47. Rc6 {[%emt 0:01:26]} Nd4 {[%emt 0:00:45]} 48. Rc4 {[%emt 0:00:05]} Nxc2 49. Rxc2 {[%emt 0:00:01]} Rxe4 {[%emt 0:00:59]} 50. Rd3 {[%emt 0:00:33]} Bf4 {[%emt 0:00:49]} 51. Kg2 {[%emt 0:00:07]} Re7 {[%emt 0:00:14]} 52. Rd5 {[%emt 0:00:32]} Ra7 {[%emt 0:00:14]} 53. Kf3 {[%emt 0:00:22]} Be5 {[%emt 0:00:01]} 54. Rb5 {[%emt 0:00:14]} Kg7 {[%emt 0:00:10]} 55. Ke4 {[%emt 0:00:03]} h5 {[%emt 0:00:26]} 56. Kd5 {[%emt 0:00:46]} g5 {[%emt 0:00:50]} 57. Ke6 {[%emt 0:00:37]} g4 {[%emt 0:00:15]} 58. Rf2 $2 {[%emt 0:00:56]} (58. Rb8 $17 {keeps fighting.}) 58... Kg6 $19 {[%emt 0:00:28]} 59. Rd2 {[%emt 0:01:12]} Ra8 {[%emt 0:00:12]} 60. Ke7 {[%emt 0:00:32]} h4 {[%emt 0:00:35]} 61. Rbd5 {[%emt 0:00:39]} Kf5 {[%emt 0:00:21]} 62. Rf2+ {[%emt 0:00:35]} Ke4 {[%emt 0:00:01]} 63. Rd1 {[%emt 0:00:28]} Ke3 {[%emt 0:00:35]} 64. Rg2 {[%emt 0:00:29]} g3 {[%emt 0:00:22]} 65. hxg3 {[%emt 0:00:06]} hxg3 {[%emt 0:00:01]} 66. Ke6 {[%emt 0:00:20]} Rh8 {[%emt 0:00:50]} 0-1